bitfinex/quotes_BTCUSD_20241216
["timestamp","ask_amount","ask_price","bid_price","bid_amount"]
[1734360566045,0.0942907,105490.0,105480.0,0.62402]
[1734360566251,0.0942907,105490.0,105480.0,0.84922]
[1734360566462,0.03053589,105520.0,105490.0,0.15]
[1734360566700,0.0942907,105510.0,105490.0,0.62398]
[1734360567609,0.0942907,105510.0,105490.0,0.61898]
[1734360568055,0.12474019,105510.0,105490.0,0.61898]
[1734360568526,0.0942907,105510.0,105490.0,0.33278867]
[1734360568737,0.0942907,105510.0,105500.0,0.47767066]
[1734360568942,8.65e-05,105510.0,105500.0,0.47767066]
[1734360569151,8.65e-05,105510.0,105500.0,1.11234117]
[1734360569370,8.64e-05,105520.0,105510.0,0.04289867]
[1734360569575,8.64e-05,105520.0,105510.0,1.44636167]
[1734360569784,8.64e-05,105520.0,105510.0,2.06144167]
[1734360570005,8.64e-05,105520.0,105510.0,2.20289313]
[1734360570251,5e-05,105530.0,105520.0,0.00864466]
[1734360570457,5e-05,105530.0,105520.0,1.92163766]
[1734360570668,5e-05,105530.0,105520.0,2.07163766]
[1734360570910,5e-05,105530.0,105520.0,2.09118817]
[1734360571330,5e-05,105530.0,105520.0,0.79322517]
[1734360571533,5e-05,105530.0,105520.0,2.09118817]
[1734360571743,5e-05,105530.0,105520.0,2.11418817]
[1734360571960,0.0655594,105580.0,105540.0,0.00864466]
[1734360572171,0.0942907,105570.0,105550.0,0.903817]
[1734360572376,0.0942907,105570.0,105550.0,0.7649]
[1734360573497,0.0942907,105570.0,105550.0,0.76546076]
[1734360573705,0.09102622,105570.0,105550.0,0.76546076]
[1734360574960,0.11518028,105570.0,105550.0,0.76546076]
[1734360575408,0.09102622,105570.0,105550.0,0.76546076]
[1734360576489,0.11518028,105570.0,105550.0,0.76546076]
[1734360576718,0.09102622,105570.0,105550.0,0.76546076]
[1734360577152,0.11518028,105570.0,105550.0,0.61546076]
[1734360577367,0.04140534,105580.0,105550.0,0.61546076]
[1734360577368,0.13564604,105560.0,105550.0,0.61546076]
[1734360577577,0.1598001,105560.0,105550.0,0.61546076]
[1734360577788,0.13564604,105560.0,105550.0,0.61546076]
[1734360578254,0.0942907,105560.0,105550.0,0.61546076]
[1734360578467,0.0942907,105560.0,105510.0,0.1291]
[1734360578468,0.02415406,105540.0,105510.0,0.1291]
[1734360578705,0.11844476,105530.0,105510.0,0.1296617]
[1734360579600,0.0942907,105530.0,105510.0,0.6035017]
[1734360580265,0.11844476,105530.0,105510.0,0.4744017]
[1734360580473,0.11844476,105520.0,105510.0,0.4744017]
[1734360581707,0.11844476,105520.0,105510.0,0.6244017]
[1734360582317,0.11844476,105520.0,105510.0,0.4744017]
[1734360583855,0.11844476,105520.0,105510.0,0.6244017]
[1734360584062,0.0942907,105520.0,105510.0,0.6244017]
[1734360584708,0.0942907,105520.0,105510.0,0.43882691]
[1734360585567,0.09282035,105520.0,105510.0,0.43882691]
[1734360586936,0.09282035,105520.0,105510.0,0.28882691]
[1734360587373,0.02415406,105490.0,105460.0,0.1305]
[1734360587585,0.0942907,105480.0,105460.0,0.13106225]
[1734360587812,0.0001365,105530.0,105470.0,1.394363]
[1734360588031,0.08832661,105530.0,105500.0,0.18]
[1734360588258,0.00118439,105570.0,105510.0,1.88675495]
[1734360588460,5e-05,105580.0,105530.0,0.14995]
[1734360588461,0.07026287,105560.0,105530.0,0.14995]
[1734360588672,0.07026287,105560.0,105530.0,0.39452955]
[1734360588846,0.07026287,105560.0,105540.0,0.012817]
[1734360589288,0.07026287,105560.0,105540.0,0.01337925]
[1734360589493,0.0942907,105550.0,105540.0,0.0143266]
[1734360589911,0.0942907,105550.0,105540.0,0.01337925]
[1734360591467,0.0942907,105550.0,105540.0,0.00056225]
[1734360592834,0.0697907,105550.0,105540.0,0.00056225]
[1734360595552,0.06846739,105550.0,105540.0,0.00056225]
[1734360595988,0.06846739,105550.0,105540.0,0.00150964]
[1734360596406,0.06846739,105550.0,105540.0,0.01824462]
[1734360596626,0.06851739,105550.0,105540.0,0.01824462]
[1734360596843,0.06851739,105550.0,105540.0,0.09934462]
[1734360597059,0.06851739,105550.0,105540.0,0.49190517]
[1734360597471,0.06851739,105550.0,105540.0,0.51530116]
[1734360598108,0.06851739,105550.0,105540.0,0.27179322]
[1734360598542,0.06851739,105550.0,105540.0,0.84625522]
[1734360598803,5e-05,105550.0,105540.0,1.30310992]
[1734360599022,8.64e-05,105570.0,105550.0,0.15]
[1734360599244,0.0943771,105570.0,105560.0,0.83888667]
[1734360599633,0.0943771,105570.0,105560.0,0.87634596]
[1734360599851,0.0943771,105570.0,105560.0,0.80210596]
[1734360600087,0.0943771,105570.0,105560.0,0.43049996]
[1734360600268,0.0943771,105570.0,105560.0,0.97336696]
[1734360600501,8.64e-05,105570.0,105560.0,0.72646396]
[1734360601374,8.64e-05,105570.0,105560.0,0.43049996]
[1734360601594,0.0943771,105570.0,105560.0,0.1640633]
[1734360601802,0.0943771,105570.0,105550.0,0.15]
[1734360602039,0.0942907,105560.0,105550.0,0.15]
[1734360602253,0.0942907,105560.0,105540.0,0.25766622]
[1734360602468,0.095475,105550.0,105540.0,0.01462555]
[1734360602679,0.0942907,105550.0,105540.0,0.01557301]
[1734360602891,0.0942907,105550.0,105540.0,0.25766622]
[1734360604648,0.0943407,105550.0,105540.0,0.24360292]
[1734360604852,0.0943407,105550.0,105540.0,0.39360292]
[1734360604853,0.0814407,105550.0,105540.0,0.39360292]
[1734360605070,0.0814407,105550.0,105540.0,0.24360292]
[1734360605538,0.06953087,105550.0,105540.0,0.24360292]
[1734360606394,0.06953087,105550.0,105540.0,0.39360292]
[1734360608501,0.06953087,105550.0,105540.0,0.50942699]
[1734360609519,0.06953087,105550.0,105540.0,0.35942699]
[1734360609766,0.11373087,105550.0,105530.0,0.24504332]
[1734360610011,0.09547539,105540.0,105520.0,0.24521612]
[1734360610258,0.0942907,105530.0,105520.0,0.0001728]
[1734360610680,0.0942907,105530.0,105520.0,0.24521612]
[1734360611338,0.0942907,105530.0,105520.0,0.39521612]
[1734360611815,0.0942907,105530.0,105520.0,0.1501728]
[1734360611991,0.0942907,105530.0,105520.0,0.50575707]
[1734360612225,0.0942907,105530.0,105520.0,0.50480955]
[1734360612642,0.07950499,105530.0,105520.0,0.50480955]
[1734360613287,0.07950499,105530.0,105520.0,0.1501728]
[1734360613839,0.07950499,105530.0,105520.0,0.36223616]
[1734360614081,0.07950499,105530.0,105520.0,0.24542726]
[1734360614553,0.07950499,105530.0,105510.0,0.24545078]
[1734360614769,5e-05,105530.0,105520.0,0.0001728]
[1734360614977,0.0943407,105530.0,105520.0,0.0001728]
[1734360615838,0.0943407,105530.0,105520.0,0.1501728]
[1734360617600,0.0943407,105530.0,105520.0,0.51223616]
[1734360619729,0.0943407,105530.0,105520.0,0.51215323]
[1734360619934,0.0943407,105530.0,105520.0,0.1501728]
[1734360620406,0.0943407,105530.0,105520.0,0.39536036]
[1734360620654,0.0943407,105530.0,105520.0,0.1501728]
[1734360621464,0.0943407,105530.0,105520.0,0.39541232]
[1734360621716,0.0943407,105530.0,105520.0,0.1501728]
[1734360621981,0.0943407,105530.0,105520.0,0.39541232]
[1734360622222,0.09552542,105530.0,105520.0,0.39541232]
[1734360623036,0.09552542,105530.0,105520.0,0.0001728]
[1734360623571,0.0943407,105530.0,105520.0,0.0001728]
[1734360623815,0.09552552,105530.0,105520.0,0.0001728]
[1734360624236,0.0943407,105530.0,105520.0,0.0001728]
[1734360624449,0.0943407,105530.0,105520.0,0.2455637]
[1734360626409,0.0944271,105530.0,105520.0,0.2455637]
[1734360626633,0.0944271,105530.0,105520.0,0.1501728]
[1734360626851,0.09064561,105530.0,105520.0,0.1452538]
[1734360627066,0.09064561,105530.0,105520.0,0.42131856]
[1734360627524,0.03747354,105530.0,105520.0,0.1452538]
[1734360627730,0.03747354,105530.0,105520.0,0.42131856]
[1734360628164,0.03747354,105530.0,105520.0,0.44630903]
[1734360628392,0.03747354,105530.0,105520.0,0.17024427]
[1734360628610,0.03747354,105530.0,105520.0,0.1452538]
[1734360629705,0.03747354,105530.0,105520.0,0.50755054]
[1734360629917,0.03747354,105530.0,105520.0,0.36229674]
[1734360630135,0.03747354,105530.0,105510.0,0.36246954]
[1734360630346,0.03747354,105530.0,105520.0,0.24543835]
[1734360630347,8.64e-05,105530.0,105520.0,0.24543835]
[1734360630550,0.0943771,105530.0,105520.0,0.24543835]
[1734360630761,0.0943771,105530.0,105510.0,0.24561115]
[1734360630987,8.64e-05,105530.0,105520.0,0.24543835]
[1734360631418,8.64e-05,105530.0,105520.0,0.24544582]
[1734360631836,0.0943771,105530.0,105510.0,0.24561862]
[1734360632062,0.0942907,105520.0,105510.0,0.24561862]
[1734360632314,0.0942907,105520.0,105510.0,0.36246954]
[1734360632511,0.0942907,105520.0,105510.0,0.02483573]
[1734360632725,0.0942907,105520.0,105510.0,0.10483573]
[1734360633158,0.0942907,105520.0,105510.0,0.2301728]
[1734360633372,0.0942907,105520.0,105510.0,0.50623756]
[1734360633815,0.0942907,105520.0,105510.0,0.2301728]
[1734360635625,0.0942907,105520.0,105510.0,0.5062868]
[1734360635828,0.0942907,105520.0,105510.0,0.2301728]
[1734360636043,0.0942907,105520.0,105510.0,0.50631331]
[1734360636890,0.0942907,105520.0,105510.0,0.2301728]
[1734360637542,8.64e-05,105530.0,105510.0,0.2301728]
[1734360637745,0.0943771,105530.0,105520.0,0.42612881]
[1734360638587,0.0943771,105530.0,105520.0,0.45116965]
[1734360638788,0.0943771,105530.0,105520.0,0.42612881]
[1734360638992,0.0943771,105530.0,105520.0,0.15]
[1734360639806,0.0943771,105530.0,105520.0,0.51254824]
[1734360643362,8.64e-05,105530.0,105520.0,0.98894824]
[1734360643623,0.0001863,105590.0,105540.0,0.05]
[1734360643875,0.0942907,105580.0,105570.0,0.5118864]
[1734360644345,0.0942907,105580.0,105570.0,0.15]
[1734360644560,0.0942907,105580.0,105570.0,0.5118864]
[1734360645208,0.0942907,105580.0,105570.0,0.51194217]
[1734360645427,0.0942907,105580.0,105570.0,0.15005577]
[1734360645642,0.0942907,105580.0,105570.0,0.51184001]
[1734360646273,0.0942907,105580.0,105570.0,0.15005577]
[1734360646498,0.0942907,105580.0,105570.0,0.51160654]
[1734360646917,0.0001863,105590.0,105570.0,0.5116301]
[1734360647123,0.094477,105590.0,105580.0,0.51157433]
[1734360647557,0.094477,105590.0,105580.0,0.51711762]
[1734360647755,0.094477,105590.0,105580.0,0.16108658]
[1734360648042,0.094477,105590.0,105580.0,0.52266091]
[1734360648272,0.094477,105590.0,105580.0,0.39468917]
[1734360648683,0.094477,105590.0,105580.0,0.24468917]
[1734360648892,0.094477,105590.0,105570.0,0.24474494]
[1734360649041,0.094477,105590.0,105570.0,5.577e-05]
[1734360649042,0.09547485,105580.0,105570.0,5.577e-05]
[1734360649644,0.09547485,105580.0,105570.0,0.24474494]
[1734360649885,0.09547485,105580.0,105570.0,5.577e-05]
[1734360650158,0.0766,105570.0,105550.0,0.24468917]
[1734360650304,0.0954752,105560.0,105550.0,0.24505867]
[1734360650709,0.0954752,105560.0,105520.0,0.36176209]
[1734360650908,0.0942907,105530.0,105520.0,0.36176209]
[1734360651111,0.0942907,105530.0,105510.0,0.37727804]
[1734360651354,0.00118475,105520.0,105510.0,0.37727804]
[1734360651559,0.00118475,105520.0,105510.0,0.38836462]
[1734360651560,0.0942507,105520.0,105510.0,0.38836462]
[1734360651764,0.0942507,105520.0,105510.0,0.37727804]
[1734360651911,0.0942507,105520.0,105510.0,0.52727804]
[1734360652518,0.0942507,105520.0,105510.0,0.37727804]
[1734360652783,0.0942507,105520.0,105510.0,0.01551595]
[1734360653342,0.09543575,105520.0,105510.0,0.01551595]
[1734360653540,0.09548575,105520.0,105510.0,0.01551595]
[1734360656288,0.0943007,105520.0,105510.0,0.01551595]
[1734360656874,0.0943007,105520.0,105480.0,0.31714644]
[1734360657070,0.09547569,105510.0,105480.0,0.31714644]
[1734360657443,0.09547569,105510.0,105480.0,0.34053744]
[1734360658489,0.09547569,105510.0,105500.0,0.0793]
[1734360658490,0.0942907,105510.0,105500.0,0.0793]
[1734360658695,0.0942907,105510.0,105490.0,0.00308905]
[1734360658874,5e-05,105550.0,105510.0,0.15]
[1734360659119,0.08673652,105540.0,105510.0,0.00055973]
[1734360659298,0.00118461,105530.0,105510.0,0.00055973]
[1734360659541,0.0942907,105520.0,105510.0,0.00055973]
[1734360660741,0.19120165,105520.0,105510.0,0.00055973]
[1734360660991,0.14238669,105520.0,105510.0,0.00055973]
[1734360662010,0.14238669,105520.0,105510.0,0.01535137]
[1734360662423,0.14238669,105520.0,105510.0,0.01552417]
[1734360663071,0.0942907,105520.0,105510.0,0.01552417]
[1734360663284,0.0942907,105520.0,105510.0,0.04418425]
[1734360663489,0.0942907,105520.0,105510.0,1.63459377]
[1734360663696,5e-05,105550.0,105520.0,0.00308905]
[1734360663899,0.0943407,105550.0,105540.0,0.00308905]
[1734360664102,5e-05,105550.0,105540.0,1.30105205]
[1734360664311,5e-05,105550.0,105540.0,0.51131015]
[1734360664312,0.0943407,105550.0,105540.0,0.51131015]
[1734360664510,0.0943407,105550.0,105530.0,0.36131015]
[1734360664687,0.09547514,105540.0,105530.0,0.36131015]
[1734360664889,0.09547514,105540.0,105520.0,0.5930992]
[1734360666108,0.0954753,105540.0,105520.0,0.5930992]
[1734360666348,5e-05,105550.0,105530.0,0.420329]
[1734360666518,5e-05,105550.0,105540.0,0.00308905]
[1734360666727,5e-05,105550.0,105540.0,1.30105205]
[1734360666928,5e-05,105550.0,105540.0,0.79124605]
[1734360667123,5e-05,105550.0,105540.0,0.50957505]
[1734360667340,5e-05,105550.0,105540.0,0.53423798]
[1734360667810,5e-05,105550.0,105540.0,0.50957505]
[1734360668770,5e-05,105550.0,105540.0,0.78458475]
[1734360668969,3.24e-06,105550.0,105540.0,0.50957505]
[1734360669196,0.09828139,105590.0,105550.0,0.15308905]
[1734360669396,0.0942907,105580.0,105570.0,0.36072414]
[1734360669614,0.0942907,105580.0,105570.0,0.51067614]
[1734360669813,0.0942907,105580.0,105570.0,0.15]
[1734360670263,0.0942907,105580.0,105560.0,0.27483744]
[1734360670463,0.0501863,105590.0,105570.0,0.00016114]
[1734360670591,0.0942907,105580.0,105570.0,0.00016114]
[1734360672018,0.18770165,105580.0,105570.0,0.00016114]
[1734360672229,0.2185907,105580.0,105570.0,0.00016114]
[1734360673506,0.2185907,105580.0,105570.0,0.03736114]
[1734360674161,0.05,105560.0,105520.0,0.01998991]
[1734360674368,0.09547521,105550.0,105520.0,0.02015681]
[1734360674795,0.09547521,105550.0,105530.0,0.36109316]
[1734360675460,0.0942907,105540.0,105520.0,0.36126006]
[1734360675671,0.09547536,105530.0,105520.0,0.0001669]
[1734360675875,0.14547536,105530.0,105520.0,0.0001669]
[1734360676829,0.09547557,105530.0,105520.0,0.0001669]
[1734360677072,0.14547549,105530.0,105520.0,0.0001669]
[1734360677562,0.19238644,105530.0,105520.0,0.0001669]
[1734360678343,0.14547549,105530.0,105520.0,0.0001669]
[1734360678644,0.14547559,105530.0,105520.0,0.0001669]
[1734360678945,0.0942907,105530.0,105520.0,0.0001669]
[1734360679454,0.1442907,105530.0,105520.0,0.0001669]
[1734360680455,0.0942907,105530.0,105520.0,0.0001669]
[1734360681168,0.09547575,105530.0,105520.0,0.0001669]
[1734360681415,0.09547575,105530.0,105510.0,0.01496124]
[1734360682036,0.05,105490.0,105460.0,0.0001728]
[1734360682039,0.0942907,105520.0,105460.0,0.0001728]
[1734360682040,0.09691095,105480.0,105460.0,0.0001728]
[1734360682324,0.09865633,105480.0,105470.0,0.01479382]
[1734360682616,0.09865633,105480.0,105460.0,0.00326185]
[1734360682617,0.09485064,105480.0,105460.0,0.00326185]
[1734360682881,0.0942907,105470.0,105460.0,0.37935154]
[1734360683166,0.0942907,105470.0,105460.0,0.37626249]
[1734360683673,0.0942907,105470.0,105460.0,0.39414943]
[1734360683810,0.0942907,105470.0,105460.0,0.61631743]
[1734360683811,0.00055994,105480.0,105460.0,0.76631743]
[1734360684030,0.00118493,105520.0,105490.0,0.00308905]
[1734360684250,0.08634573,105510.0,105490.0,0.00308905]
[1734360684465,0.08634573,105510.0,105490.0,0.36133617]
[1734360684982,0.0942907,105500.0,105480.0,0.36133617]
[1734360686095,0.0942907,105500.0,105470.0,0.36442522]
[1734360686376,0.09691095,105520.0,105470.0,0.36442522]
[1734360686377,0.0942907,105490.0,105470.0,0.36442522]
[1734360686679,0.0942907,105480.0,105470.0,0.36133617]
[1734360686911,0.0942907,105480.0,105460.0,0.37686331]
[1734360687269,0.00118531,105470.0,105460.0,0.03032399]
[1734360687482,0.09547601,105470.0,105460.0,0.03032399]
[1734360688206,0.00118533,105490.0,105460.0,0.58364321]
[1734360688438,0.0942907,105480.0,105460.0,0.39474921]
[1734360688697,0.00118525,105470.0,105460.0,0.54157401]
[1734360688931,0.09547595,105470.0,105460.0,0.03032399]
[1734360690003,0.09547595,105470.0,105460.0,0.01552714]
[1734360692773,0.1423869,105470.0,105460.0,0.01552714]
[1734360693019,0.19120165,105470.0,105460.0,0.01552714]
[1734360693304,0.19120165,105470.0,105460.0,0.03032744]
[1734360693838,0.14547619,105470.0,105460.0,0.03032744]
[1734360694104,0.14547619,105470.0,105460.0,0.11808744]
[1734360694388,0.0942907,105470.0,105460.0,0.10328714]
[1734360696885,0.09547608,105470.0,105460.0,0.10328714]
[1734360697334,0.0942907,105470.0,105460.0,0.10328714]
[1734360698025,0.0942907,105470.0,105430.0,0.03951499]
[1734360698157,0.09547613,105460.0,105450.0,0.01479558]
[1734360698559,0.09547613,105460.0,105430.0,0.17471595]
[1734360698747,0.09547613,105460.0,105450.0,0.01479549]
[1734360698948,0.09547613,105460.0,105430.0,0.18951495]
[1734360699154,0.00118543,105450.0,105430.0,0.014799]
[1734360699349,0.09547631,105450.0,105430.0,0.014799]
[1734360699558,0.09547631,105450.0,105430.0,0.02959485]
[1734360699754,0.0942907,105440.0,105430.0,0.02959485]
[1734360699964,0.0942907,105440.0,105420.0,0.0243306]
[1734360700170,0.0942907,105440.0,105430.0,0.01480117]
[1734360700417,0.0942907,105440.0,105420.0,0.0243306]
[1734360700837,0.0942907,105440.0,105430.0,0.15]
[1734360701036,0.0942907,105440.0,105430.0,0.62425]
[1734360701925,0.0942907,105440.0,105430.0,0.47425]
[1734360702960,0.0942907,105440.0,105430.0,0.29208241]
[1734360703175,0.0942907,105440.0,105430.0,0.45688335]
[1734360703377,0.127,105490.0,105430.0,1.60484635]
[1734360703568,8.64e-05,105510.0,105440.0,0.09864003]
[1734360703569,0.0942907,105480.0,105440.0,0.09864003]
[1734360703709,0.0942907,105480.0,105440.0,0.75501003]
[1734360703921,0.0011852,105470.0,105450.0,0.15]
[1734360704196,0.0954759,105470.0,105450.0,0.80633]
[1734360704807,0.0942907,105460.0,105450.0,0.80633]
[1734360705222,0.0942907,105460.0,105450.0,0.65633]
[1734360705440,0.0942907,105460.0,105450.0,1.15633]
[1734360705871,0.0954762,105460.0,105450.0,1.15633]
[1734360706922,0.0942907,105460.0,105450.0,1.15633]
[1734360707123,0.09547621,105460.0,105450.0,1.15633]
[1734360708067,0.0942907,105460.0,105450.0,1.15633]
[1734360708273,0.0942907,105460.0,105450.0,1.18496277]
[1734360709105,0.00118531,105490.0,105450.0,1.18496277]
[1734360709315,0.0942907,105480.0,105450.0,1.15633]
[1734360709520,0.00118528,105470.0,105450.0,1.15633]
[1734360709724,0.0942907,105460.0,105450.0,1.15633]
[1734360709932,0.0942907,105460.0,105450.0,1.30633]
[1734360710347,0.0942907,105460.0,105450.0,1.33052757]
[1734360711526,0.0942907,105460.0,105450.0,1.18052757]
[1734360712528,0.0942907,105460.0,105450.0,1.15633]
[1734360712744,0.09547621,105460.0,105450.0,1.15633]
[1734360714439,0.14547621,105460.0,105450.0,1.15633]
[1734360714642,0.0942907,105460.0,105450.0,1.15633]
[1734360714841,0.09547617,105460.0,105450.0,1.15633]
[1734360715043,0.04231219,105460.0,105450.0,1.15633]
[1734360717024,0.04112672,105460.0,105450.0,1.15633]
[1734360717283,0.04112672,105460.0,105450.0,1.30633]
[1734360717653,0.04112672,105460.0,105450.0,1.15633]
[1734360719759,0.22191228,105460.0,105450.0,1.15633]
[1734360720066,0.24211795,105460.0,105450.0,1.15633]
[1734360720333,0.21992672,105460.0,105450.0,1.15633]
[1734360722288,0.19292672,105460.0,105450.0,0.97714594]
[1734360722494,0.023,105450.0,105440.0,0.0001728]
[1734360722708,0.11825009,105450.0,105440.0,0.0001728]
[1734360722912,0.09525009,105450.0,105440.0,0.4743528]
[1734360723531,0.19525009,105450.0,105440.0,0.4743528]
[1734360723670,0.14525009,105450.0,105440.0,0.4743528]
[1734360724102,0.19525009,105450.0,105440.0,0.4743528]
[1734360724456,0.14525009,105450.0,105440.0,0.4743528]
[1734360724643,0.19525009,105450.0,105440.0,0.4743528]
[1734360724856,0.09525009,105450.0,105440.0,0.4743528]
[1734360725506,0.14525009,105450.0,105440.0,0.4743528]
[1734360725935,0.09525009,105450.0,105440.0,0.4743528]
[1734360726363,0.11825009,105450.0,105440.0,0.4743528]
[1734360727913,0.11830009,105450.0,105440.0,0.4743528]
[1734360729446,0.023,105430.0,105420.0,0.0001728]
[1734360729644,0.11825009,105430.0,105420.0,0.0001728]
[1734360729848,0.12921611,105430.0,105420.0,0.0001728]
[1734360730584,0.14965009,105430.0,105420.0,0.0001728]
[1734360732312,0.29965009,105430.0,105420.0,0.0001728]
[1734360732559,0.2986907,105430.0,105420.0,0.0001728]
[1734360732899,0.32794053,105420.0,105400.0,0.0029082]
[1734360733141,0.42319062,105410.0,105400.0,0.0001728]
[1734360733322,0.42319062,105410.0,105350.0,0.0461728]
[1734360733323,0.05,105360.0,105350.0,0.0461728]
[1734360733525,0.14525009,105360.0,105350.0,0.0461728]
[1734360733883,0.19525009,105360.0,105350.0,0.0001728]
[1734360734085,0.11825009,105360.0,105350.0,0.0001728]
[1734360734524,0.14438365,105360.0,105350.0,0.0001728]
[1734360734742,0.09438365,105360.0,105350.0,0.00313349]
[1734360735079,0.11738365,105360.0,105350.0,0.00313349]
[1734360735517,0.11738365,105360.0,105350.0,0.0001728]
[1734360736201,0.11638365,105360.0,105350.0,0.0001728]
[1734360736495,0.13114202,105360.0,105350.0,0.0001728]
[1734360736677,0.11638365,105360.0,105350.0,0.0001728]
[1734360737071,0.09338365,105360.0,105350.0,0.0001728]
[1734360737657,0.11638365,105360.0,105350.0,0.0001728]
[1734360739137,0.11638365,105360.0,105350.0,0.01499068]
[1734360739314,0.12994826,105360.0,105350.0,0.01499068]
[1734360739980,0.11638365,105360.0,105350.0,0.01499068]
[1734360740185,0.09338365,105360.0,105350.0,0.01499068]
[1734360740394,0.09338365,105360.0,105290.0,0.05]
[1734360740597,0.14338365,105360.0,105310.0,0.023]
[1734360740800,0.1,105380.0,105350.0,0.01481556]
[1734360741004,0.0942907,105370.0,105330.0,0.09696314]
[1734360741227,0.0942907,105380.0,105340.0,0.00267244]
[1734360741439,0.0942907,105380.0,105350.0,1.229688]
[1734360741657,0.19280453,105370.0,105320.0,0.01481237]
[1734360741860,0.09732756,105360.0,105320.0,0.01481237]
[1734360742044,0.09547732,105350.0,105320.0,0.01481237]
[1734360742459,0.19280488,105350.0,105320.0,0.01481237]
[1734360742659,0.04732756,105340.0,105320.0,0.01537093]
[1734360742860,0.14161826,105340.0,105320.0,0.01537093]
[1734360743173,0.0942907,105340.0,105320.0,0.01537093]
[1734360743641,0.05,105360.0,105330.0,0.1303]
[1734360743859,0.05,105360.0,105350.0,0.0809]
[1734360743860,0.12680826,105360.0,105350.0,0.0809]
[1734360744272,0.12799477,105360.0,105350.0,0.70551]
[1734360744480,0.17799477,105360.0,105350.0,0.70551]
[1734360744902,0.0942907,105360.0,105350.0,0.75491]
[1734360745112,0.09067951,105360.0,105350.0,0.75491]
[1734360746037,0.09186602,105360.0,105350.0,0.75491]
[1734360746280,0.09067951,105360.0,105350.0,0.75491]
[1734360746537,0.17438358,105360.0,105350.0,0.75491]
[1734360746790,0.17447008,105360.0,105350.0,0.75491]
[1734360746999,0.17447008,105360.0,105350.0,0.52401]
[1734360747000,0.09195252,105360.0,105350.0,0.52401]
[1734360747462,0.09076601,105360.0,105350.0,0.52401]
[1734360749137,0.09076601,105360.0,105350.0,0.47461]
[1734360750885,0.09076601,105360.0,105350.0,0.62461]
[1734360751110,8.65e-05,105360.0,105350.0,0.75011]
[1734360751998,0.08370385,105390.0,105360.0,0.15]
[1734360752209,0.12680826,105380.0,105370.0,0.0497]
[1734360752418,0.12680826,105380.0,105370.0,0.52422]
[1734360752624,0.17680826,105380.0,105370.0,0.52422]
[1734360752831,0.12680826,105380.0,105370.0,0.67422]
[1734360753265,0.12680826,105380.0,105370.0,0.67438705]
[1734360753266,0.17680826,105380.0,105370.0,0.67438705]
[1734360753483,0.17680826,105380.0,105370.0,0.52438705]
[1734360753699,0.0942907,105380.0,105370.0,0.52438705]
[1734360754133,0.0942907,105380.0,105370.0,0.47468705]
[1734360756084,0.17680826,105380.0,105370.0,0.52458705]
[1734360756298,0.12680826,105380.0,105370.0,0.52458705]
[1734360756505,0.17680826,105380.0,105370.0,0.52458705]
[1734360757806,0.17280826,105380.0,105370.0,0.52458705]
[1734360758259,0.0902907,105380.0,105370.0,0.47468705]
[1734360758709,0.0903772,105380.0,105370.0,0.47468705]
[1734360758915,0.12289476,105380.0,105370.0,2.0]
[1734360759125,0.11307435,105380.0,105370.0,1.27166864]
[1734360759334,0.08055679,105380.0,105370.0,1.27166864]
[1734360759543,0.11307435,105380.0,105370.0,1.74616864]
[1734360760180,0.10810228,105380.0,105370.0,1.74616864]
[1734360760383,0.1551786,105380.0,105370.0,1.74616864]
[1734360760590,0.07266104,105380.0,105370.0,1.74616864]
[1734360760812,0.07266104,105380.0,105370.0,1.89616864]
[1734360761014,8.65e-05,105380.0,105370.0,1.89616864]
[1734360761434,0.0943772,105380.0,105370.0,1.89616864]
[1734360762612,8.65e-05,105380.0,105370.0,1.89616864]
[1734360762847,1.04720505,105400.0,105370.0,1.89616864]
[1734360763103,0.09500331,105390.0,105370.0,1.89616864]
[1734360763356,0.99720505,105400.0,105380.0,0.00094889]
[1734360763640,0.94720505,105400.0,105380.0,1.96145503]
[1734360763914,0.66784223,105400.0,105390.0,1.68183614]
[1734360764170,5e-05,105430.0,105400.0,0.01748244]
[1734360764419,0.03251756,105450.0,105410.0,1.4151794]
[1734360764903,0.0488865,105470.0,105430.0,0.15]
[1734360764906,0.0943916,105470.0,105430.0,0.15]
[1734360765148,0.09500331,105460.0,105430.0,0.6251983]
[1734360765857,0.09500331,105460.0,105430.0,0.62536546]
[1734360766066,0.12752087,105460.0,105430.0,0.62536546]
[1734360766272,0.09500331,105460.0,105430.0,0.62536546]
[1734360767903,0.12752087,105460.0,105430.0,0.62536546]
[1734360768173,0.09500331,105460.0,105430.0,0.62536546]
[1734360768456,8.65e-05,105470.0,105440.0,0.00094826]
[1734360768751,0.09508981,105470.0,105440.0,0.00094826]
[1734360768969,0.12760737,105470.0,105440.0,0.47514826]
[1734360769414,0.0943772,105470.0,105440.0,0.47514826]
[1734360769619,0.12760737,105470.0,105450.0,0.15]
[1734360769830,0.09508981,105470.0,105450.0,0.62416]
[1734360770060,0.12760737,105470.0,105450.0,0.62416]
[1734360770506,0.09500331,105460.0,105450.0,0.62416]
[1734360771754,8.65e-05,105470.0,105450.0,0.62416]
[1734360771962,0.12760737,105470.0,105450.0,0.62416]
[1734360772579,0.09508981,105470.0,105450.0,0.62416]
[1734360772797,0.0943772,105470.0,105450.0,0.62416]
[1734360773008,0.09508981,105470.0,105450.0,0.62416]
[1734360773230,8.65e-05,105470.0,105450.0,0.62416]
[1734360773980,0.0942907,105460.0,105450.0,0.62416]
[1734360774184,0.03331667,105470.0,105450.0,0.62416]
[1734360774391,0.00079911,105470.0,105450.0,0.62416]
[1734360774596,0.03331667,105470.0,105450.0,0.62416]
[1734360774807,0.00079911,105470.0,105450.0,0.62416]
[1734360775012,0.03331667,105470.0,105450.0,0.62416]
[1734360775213,0.00079911,105470.0,105450.0,0.13316]
[1734360775635,0.03331667,105470.0,105450.0,0.13316]
[1734360775849,0.0942907,105460.0,105450.0,0.13311]
[1734360776065,0.17231336,105460.0,105450.0,0.13311]
[1734360776274,0.1436907,105460.0,105450.0,0.13311]
[1734360776479,0.18990841,105460.0,105450.0,0.13311]
[1734360776733,0.22242597,105460.0,105450.0,0.13311]
[1734360776954,0.22171336,105460.0,105450.0,0.13311]
[1734360778269,0.1436907,105460.0,105450.0,0.13311]
[1734360778477,0.0942907,105460.0,105450.0,0.1567101]
[1734360778900,0.14050841,105460.0,105450.0,0.1567101]
[1734360780669,0.17302597,105460.0,105450.0,0.1567101]
[1734360780916,0.12752087,105460.0,105450.0,0.13311]
[1734360781165,0.1397958,105460.0,105450.0,0.13311]
[1734360781406,0.17302597,105460.0,105450.0,0.13311]
[1734360782734,0.14050841,105460.0,105450.0,0.13311]
[1734360782939,0.1397958,105460.0,105450.0,0.13311]
[1734360783624,0.2219907,105460.0,105450.0,0.13311]
[1734360785035,0.25450826,105460.0,105450.0,0.13311]
[1734360785470,0.2219907,105460.0,105450.0,0.13311]
[1734360785708,0.25450826,105460.0,105450.0,0.13311]
[1734360785928,0.30001336,105460.0,105450.0,0.13311]
[1734360786144,0.2674958,105460.0,105450.0,0.13311]